bitfinex-derivatives/quotes_ETHF0:USTF0_20240826
["timestamp","ask_amount","ask_price","bid_price","bid_amount"]
[1724662428425,3.5635,2737.2,2737.1,0.36523]
[1724662431935,0.3557,2737.2,2737.1,0.36523]
[1724662432144,3.5635,2737.2,2737.1,0.36523]
[1724662432532,0.3557,2737.2,2737.1,0.36523]
[1724662432733,3.5635,2737.2,2737.1,0.36523]
[1724662435542,5.95198005,2737.2,2737.1,0.36523]
[1724662436134,3.5635,2737.2,2737.1,0.36523]
[1724662436331,5.95198005,2737.2,2737.1,0.36523]
[1724662438242,3.5635,2737.2,2737.1,0.36523]
[1724662439039,5.47314158,2737.2,2737.1,0.36523]
[1724662441347,3.5635,2737.2,2737.0,1.32]
[1724662441642,0.3594,2737.1,2737.0,1.68525]
[1724662441847,2.74788005,2737.1,2737.0,1.68525]
[1724662442249,0.3594,2737.1,2737.0,1.68525]
[1724662442445,3.11311005,2737.1,2737.0,1.68525]
[1724662442744,2.74788005,2737.1,2737.0,1.68525]
[1724662442936,1.90914918,2737.1,2737.0,1.68525]
[1724662443153,5.11694918,2737.2,2737.1,2.19141]
[1724662443342,2.38848005,2737.4,2737.3,1.27824]
[1724662443343,1.90914918,2737.4,2737.3,1.27824]
[1724662443542,2.38848005,2737.6,2737.3,2.23303]
[1724662443748,1.90966214,2737.5,2737.4,0.36519]
[1724662443938,1.90966214,2737.5,2737.4,2.03909]
[1724662444136,1.90966214,2737.5,2737.4,5.69189]
[1724662445653,1.90966214,2737.5,2737.4,6.04909]
[1724662448356,1.90966214,2737.6,2737.5,0.36518]
[1724662448544,1.90966214,2737.6,2737.5,2.04838]
[1724662449153,6.69454005,2737.7,2737.6,0.36517]
[1724662450352,6.32938005,2737.7,2737.6,0.36517]
[1724662451249,3.9409,2737.7,2737.6,0.36517]
[1724662451449,5.84926881,2737.7,2737.6,0.36517]
[1724662451650,5.84924713,2737.7,2737.6,0.36517]
[1724662453553,1.90834713,2737.7,2737.6,0.36517]
[1724662453753,1.90834713,2737.8,2737.7,0.36515]
[1724662453951,1.90834713,2737.9,2737.8,1.68514]
[1724662454161,2.65994713,2738.0,2737.9,0.36513]
[1724662454453,3.02505713,2738.0,2737.9,0.36513]
[1724662454956,0.36513,2737.9,2737.8,1.68513]
[1724662455145,2.27293587,2737.9,2737.8,1.68513]
[1724662455350,0.36513,2737.9,2737.8,1.68513]
[1724662456248,3.02452587,2738.0,2737.9,0.36513]
[1724662457855,6.23232587,2738.0,2737.9,0.36513]
[1724662459961,4.32452,2738.0,2737.9,0.36513]
[1724662460759,0.36517,2737.7,2737.6,0.36517]
[1724662460950,0.36517,2737.7,2737.3,4.195]
[1724662460951,0.36517,2737.6,2737.3,4.195]
[1724662461152,1.47117,2737.6,2737.5,0.36518]
[1724662461351,1.47117,2737.6,2737.5,1.68518]
[1724662461855,1.47117,2737.6,2737.5,0.36518]
[1724662462952,1.106,2737.6,2737.5,0.36518]
[1724662465062,4.3138,2737.6,2737.5,0.36518]
[1724662465963,1.106,2737.6,2737.5,0.36518]
[1724662466352,4.3138,2737.6,2737.5,0.36518]
[1724662466755,1.106,2737.6,2737.5,0.36518]
[1724662466963,4.3138,2737.6,2737.5,0.36518]
[1724662469062,6.58514795,2737.6,2737.5,0.36518]
[1724662471459,6.58514795,2737.6,2736.9,4.51549556]
[1724662471460,9.2866,2737.6,2736.9,0.91314]
[1724662471660,3.59112514,2737.5,2737.4,0.36519]
[1724662472069,5.33799,2737.5,2737.4,0.36519]
[1724662472670,7.24395478,2737.5,2737.4,0.36519]
[1724662472870,5.92395478,2737.5,2737.4,0.36519]
[1724662475874,4.01799,2737.5,2737.4,0.36519]
[1724662476058,4.01799,2737.5,2737.3,1.32]
[1724662476059,0.36519,2737.4,2737.3,1.6852]
[1724662476259,0.36519,2737.4,2737.0,1.32]
[1724662476260,1.90625253,2737.4,2737.0,1.32]
[1724662476454,2.27147253,2737.2,2737.1,0.36523]
[1724662476865,3.01727253,2737.2,2737.1,0.36523]
[1724662478275,6.67087253,2737.2,2737.1,0.36523]
[1724662480767,9.87867253,2737.2,2737.1,0.36523]
[1724662481067,7.97242,2737.2,2737.1,0.36523]
[1724662481264,9.87867253,2737.2,2737.1,0.36523]
[1724662481463,6.22507253,2737.2,2737.1,1.68523]
[1724662482972,5.11405253,2737.2,2737.1,1.68523]
[1724662483372,5.47927253,2737.2,2737.1,1.68523]
[1724662483769,3.57302,2737.2,2737.1,1.68523]
[1724662484165,3.2078,2737.2,2737.1,1.68523]
[1724662485171,3.2078,2737.2,2737.1,2.38703]
[1724662486868,2.27146253,2737.3,2737.1,2.38703]
[1724662487173,2.27146253,2737.3,2737.2,1.68522]
[1724662487374,5.47926253,2737.3,2737.2,1.68522]
[1724662488273,3.57301,2737.3,2737.2,1.68522]
[1724662490269,0.36522,2737.2,2737.1,2.03442]
[1724662490469,0.71782,2737.2,2737.1,2.03442]
[1724662491370,0.71782,2737.2,2737.1,1.6692]
[1724662491567,0.36523,2737.1,2737.0,1.32]
[1724662491772,0.73313,2737.1,2737.0,1.32]
[1724662491969,1.10693,2737.1,2737.0,1.32]
[1724662493067,1.10693,2737.1,2737.0,1.68525]
[1724662494168,4.31473,2737.1,2737.0,1.68525]
[1724662495570,1.10693,2737.1,2737.0,1.68525]
[1724662495769,4.31473,2737.1,2737.0,1.68525]
[1724662497573,1.10693,2737.1,2737.0,1.68525]
[1724662497776,4.31473,2737.1,2737.0,1.68525]
[1724662500683,1.10693,2737.1,2737.0,1.68525]
[1724662500885,4.31473,2737.1,2737.0,1.68525]
[1724662501771,6.22003114,2737.1,2737.0,1.68525]
[1724662503279,5.85480114,2737.1,2737.0,1.68525]
[1724662503980,3.9495,2737.1,2737.0,1.68525]
[1724662504374,5.11310114,2737.1,2737.0,1.68525]
[1724662504681,3.2078,2737.1,2737.0,1.68525]
[1724662505077,3.9179,2737.1,2737.0,1.68525]
[1724662505268,5.82320114,2737.1,2737.0,1.68525]
[1724662507272,5.82533981,2737.1,2737.0,1.68525]
[1724662507883,3.9179,2737.1,2737.0,1.68525]
[1724662509482,5.82529283,2737.1,2737.0,1.68525]
[1724662509873,3.35341866,2737.7,2737.0,1.68525]
[1724662509874,1.90737722,2737.4,2737.2,0.91306]
[1724662510079,1.90737722,2737.5,2737.4,0.36519]
[1724662510280,1.90737722,2737.7,2737.4,1.32]
[1724662510485,1.90737722,2737.6,2737.5,0.36517]
[1724662510882,2.27254722,2737.6,2737.5,0.36517]
[1724662511183,2.27254722,2737.6,2737.4,1.68519]
[1724662511184,0.36518,2737.5,2737.4,1.68519]
[1724662511387,3.00407112,2737.5,2737.4,1.68519]
[1724662511772,3.95889112,2737.5,2737.3,0.3722]
[1724662511976,0.725,2737.4,2737.0,1.687]
[1724662512176,1.90748206,2737.3,2737.0,2.0708]
[1724662512379,1.90748206,2737.3,2737.2,0.36522]
[1724662512787,1.90748206,2737.3,2737.2,1.68522]
[1724662514191,1.90748206,2737.3,2737.1,0.36523]
[1724662514192,0.36523,2737.2,2737.1,0.36523]
[1724662514488,0.36524,2737.1,2737.0,0.36525]
[1724662514699,2.65130836,2737.1,2737.0,0.36525]
[1724662516692,0.74354,2737.1,2737.0,0.36525]
[1724662516984,0.3783,2737.1,2737.0,0.36525]
[1724662517393,2.76678005,2737.1,2737.0,0.36525]
[1724662517590,0.3783,2737.1,2737.0,1.68525]
[1724662518492,2.38848005,2737.2,2737.1,0.36523]
[1724662518684,2.38848005,2737.2,2737.1,1.68523]
[1724662519892,8.1814,2737.2,2736.6,0.96127201]
[1724662520190,3.70516246,2736.9,2736.7,0.36528]
[1724662520491,2.3850546,2736.8,2736.7,0.36528]
[1724662523599,4.0703146,2736.9,2736.7,0.36528]
[1724662524484,2.7503146,2736.9,2736.8,0.36527]
[1724662524679,2.3850546,2736.9,2736.8,2.59846]
[1724662524885,1.9075874,2737.1,2736.9,0.91316]
[1724662525103,3.2078,2737.2,2737.1,1.27832]
[1724662525389,3.2078,2737.2,2737.1,3.14720556]
[1724662525690,3.2078,2737.2,2737.1,28.50080556]
[1724662526491,1.9075874,2737.6,2737.5,0.36518]
[1724662526693,1.9075874,2737.7,2737.6,0.36517]
[1724662526894,1.9075874,2738.0,2737.9,0.36513]
[1724662527190,3.21657516,2738.1,2738.0,0.36511]
[1724662527687,3.21657516,2738.1,2737.9,1.68512]
[1724662527883,5.48926256,2738.1,2737.9,1.68512]
[1724662528090,5.12416256,2738.1,2737.9,1.68512]
[1724662528483,3.58167516,2738.1,2737.9,1.68512]
[1724662528898,3.21657516,2738.1,2737.9,1.68512]
[1724662529596,3.21657516,2738.1,2737.6,0.3843]
[1724662529597,3.21657516,2738.1,2737.6,0.36516]
[1724662529789,4.5278,2737.8,2737.6,0.36516]
[1724662530093,0.3731,2737.7,2737.6,1.68516]
[1724662531698,0.7386,2737.7,2737.6,1.68516]
[1724662531899,3.9464,2737.7,2737.6,1.68516]
[1724662532102,3.9464,2737.7,2737.6,0.36516]
[1724662533397,4.31156,2737.7,2737.5,0.36518]
[1724662533601,3.9464,2737.7,2737.3,0.3755]
[1724662534198,3.9464,2737.7,2737.6,0.36517]
[1724662538502,4.31155,2737.7,2737.6,0.36517]
[1724662538704,0.36517,2737.6,2737.5,0.36518]
[1724662539503,4.31156,2737.7,2737.5,0.36518]
[1724662539806,3.9464,2737.7,2737.6,0.36517]
[1724662541094,4.31155,2737.7,2737.3,0.3755]
[1724662541400,4.31155,2737.7,2737.5,0.36517]
[1724662541993,4.31155,2737.7,2737.6,0.36517]
[1724662542602,3.2078,2737.7,2737.6,0.36517]
[1724662543499,3.5755,2737.7,2737.6,0.36517]
[1724662544892,0.3677,2737.7,2737.6,0.36517]
[1724662545096,3.5755,2737.7,2737.6,0.36517]
[1724662550605,3.94065,2737.7,2737.6,0.36517]
[1724662552010,3.5755,2737.7,2737.3,0.3755]
[1724662552200,3.5755,2737.7,2737.0,4.195]
[1724662552201,1.32,2737.5,2737.0,4.195]
[1724662552401,2.0717,2737.4,2737.2,0.36522]
[1724662552601,0.3833,2737.3,2737.2,0.36522]
[1724662553300,0.3833,2737.3,2737.2,1.68522]
[1724662556215,3.5911,2737.3,2737.2,1.68522]
[1724662558004,0.3833,2737.3,2737.2,1.68522]
[1724662558316,3.5911,2737.3,2737.2,1.68522]
[1724662561200,3.95631,2737.3,2737.2,1.68522]
[1724662561403,8.5647,2737.3,2736.8,0.384]
[1724662561714,0.36525,2737.0,2736.9,0.36525]
[1724662564513,0.36527,2736.9,2736.8,0.36527]
[1724662564711,2.45477,2736.9,2736.8,0.36527]
[1724662565013,0.36528,2736.8,2736.7,0.36528]
[1724662565215,0.75018,2736.8,2736.7,0.36528]
[1724662565515,0.3849,2736.8,2736.7,1.68528]
[1724662568716,3.5927,2736.8,2736.7,1.68528]
[1724662572617,0.3849,2736.8,2736.7,1.68528]
[1724662572919,3.5927,2736.8,2736.7,1.68528]
[1724662574116,3.2078,2736.8,2736.7,1.68528]
[1724662576820,3.57307,2736.8,2736.7,0.36528]
[1724662578518,3.2078,2736.8,2736.7,0.36528]
[1724662579615,1.13477,2736.9,2736.8,0.36527]
[1724662579815,4.34257,2736.9,2736.8,0.36527]
[1724662581022,3.9773,2736.9,2736.8,0.36527]
[1724662581314,3.9773,2736.9,2736.8,0.73147]
[1724662582419,4.34256,2736.9,2736.8,0.73147]
[1724662582620,3.9773,2736.9,2736.8,0.73147]
[1724662582821,3.2078,2736.9,2736.8,0.73147]
[1724662583015,5.1153874,2737.2,2737.1,0.36523]
[1724662583217,5.1153874,2737.2,2737.1,1.68523]
[1724662583218,3.2078,2737.2,2737.1,1.68523]
[1724662589020,0.3798,2737.3,2737.1,1.68523]
[1724662589021,0.3798,2737.3,2737.2,0.36522]
[1724662589326,3.5876,2737.3,2737.2,0.36522]
[1724662589729,0.3798,2737.3,2737.2,0.36522]
[1724662589918,3.5876,2737.3,2737.2,0.36522]
[1724662591715,3.5876,2737.3,2737.2,0.74342]
[1724662593422,0.36522,2737.2,2737.1,0.36523]
[1724662593621,0.36523,2737.1,2737.0,1.68524]
[1724662593921,1.10953,2737.1,2737.0,1.68524]
[1724662594625,0.7443,2737.1,2737.0,1.68524]
[1724662595024,1.10953,2737.1,2737.0,1.68524]
[1724662597125,0.7443,2737.1,2737.0,1.68524]
[1724662612341,0.365,2737.1,2737.0,1.68524]
[1724662617455,0.365,2737.1,2737.0,0.36524]
[1724662619657,0.365,2737.1,2737.0,1.68524]
[1724662619956,1.9075874,2737.2,2737.1,0.36523]
[1724662620341,3.9576,2737.3,2737.0,1.32]
[1724662620342,5.8651874,2737.3,2737.2,0.36522]
[1724662620851,5.1153874,2737.3,2737.2,1.68522]
[1724662621054,5.1153874,2737.3,2737.2,5.33882]
[1724662621255,1.9075874,2737.5,2737.2,14.09446]
[1724662621448,1.9075874,2737.7,2737.6,0.36517]
[1724662621755,3.5944,2738.0,2737.6,1.32]
[1724662621756,5.5019874,2738.0,2737.6,1.32]
[1724662621956,5.5019874,2738.0,2737.9,0.36513]
[1724662622256,6.3445646,2738.0,2737.7,1.07824]
[1724662622552,1.90728073,2737.9,2737.7,1.07824]
[1724662622746,1.90728073,2737.9,2737.8,0.36514]
[1724662624245,1.90728073,2737.9,2737.8,1.68514]
[1724662625449,5.50168073,2738.0,2737.8,1.68514]
[1724662625755,1.90728073,2737.9,2737.8,1.68514]
[1724662625953,5.50168073,2738.0,2737.8,1.68514]
[1724662626251,5.50168073,2738.0,2737.9,1.68513]
[1724662626252,3.2078,2738.0,2737.9,1.68513]
[1724662626454,0.00877516,2738.1,2738.0,0.36511]
[1724662626654,0.00877516,2738.1,2738.0,4.9299]
[1724662626855,0.00022442,2738.1,2738.0,13.19079711]
[1724662627355,0.00022442,2738.1,2738.0,11.75590904]
[1724662627559,0.00022442,2738.1,2738.0,13.18857485]
[1724662627748,0.00022442,2738.1,2738.0,11.75590904]
[1724662628661,0.00022442,2738.1,2738.0,10.88441099]
[1724662629255,0.00022442,2738.1,2738.0,9.97162099]
[1724662629450,0.00022442,2738.1,2738.0,9.01711]
[1724662629854,0.00022442,2738.1,2738.0,5.33711]
[1724662630052,0.00022442,2738.1,2738.0,10.33711]
[1724662631062,0.00022442,2738.1,2738.0,9.01711]
[1724662631258,0.00022442,2738.1,2738.0,5.33711]
[1724662634664,0.00022442,2738.1,2738.0,6.2499]
[1724662642261,0.00022442,2738.1,2738.0,9.4577]
[1724662642973,0.00022442,2738.1,2738.0,6.2499]
[1724662643170,0.00022442,2738.1,2738.0,9.4577]
[1724662648265,0.00022442,2738.1,2738.0,0.36511]
[1724662648467,2.06712442,2738.1,2738.0,0.36511]
[1724662648767,0.74712442,2738.1,2738.0,0.36511]
[1724662648959,0.74712442,2738.1,2737.9,1.32]
[1724662648960,4.39912442,2738.1,2737.9,1.32]
[1724662649165,0.3864,2738.0,2737.9,1.68512]
[1724662650059,0.75151,2738.0,2737.9,1.32]
[1724662650265,4.0384,2738.0,2737.9,1.32]
[1724662650871,4.40351,2738.0,2737.9,1.32]
[1724662651371,4.0384,2738.0,2737.9,1.32]
[1724662652070,4.40351,2738.0,2737.9,1.32]
[1724662652275,4.0384,2738.0,2737.9,1.32]
[1724662654073,4.0384,2738.0,2737.9,1.68513]
[1724662654469,10.3584,2738.0,2737.4,1.32]
[1724662654663,1.32,2737.8,2737.6,0.36516]
[1724662654874,1.68514,2737.8,2737.6,0.36516]
[1724662655077,0.376,2737.7,2737.6,0.36516]
[1724662655568,4.0288,2737.7,2737.6,0.36516]
[1724662656767,4.39395,2737.7,2737.4,1.32]
[1724662656965,0.3783,2737.6,2737.5,0.36518]
[1724662657277,0.3783,2737.6,2737.5,1.68518]
[1724662657571,4.0311,2737.6,2737.5,1.68518]
[1724662658169,0.3783,2737.6,2737.5,1.68518]
[1724662659075,4.0311,2737.6,2737.5,1.68518]
[1724662664171,7.2389,2737.6,2737.5,1.68518]
[1724662665565,7.60407,2737.6,2737.5,0.36518]
[1724662667871,7.95727,2737.6,2737.5,0.36518]
[1724662670878,0.36518,2737.5,2737.4,0.36519]
[1724662674080,5.2593,2737.6,2737.5,0.36518]
[1724662674081,4.30448,2737.6,2737.5,0.36518]
[1724662674280,7.95728,2737.6,2737.5,0.36518]
[1724662677078,0.36518,2737.5,2737.4,1.68518]
[1724662678575,0.36518,2737.5,2737.4,1.68519]
[1724662679379,0.3652,2737.4,2737.3,1.68519]
[1724662680279,0.36519,2737.5,2737.4,0.36519]
[1724662680584,0.36519,2737.4,2737.3,1.6852]
[1724662680983,0.36519,2737.5,2737.4,0.36519]
[1724662681482,4.01799,2737.5,2737.4,0.36519]
[1724662686388,0.36519,2737.5,2737.4,0.36519]
[1724662688783,0.36519,2737.5,2737.4,0.71699]
[1724662692686,2.27247073,2737.5,2737.4,0.71699]
[1724662693689,5.92527073,2737.5,2737.4,0.71699]
[1724662694089,2.27247073,2737.5,2737.4,0.71699]
[1724662694289,5.92527073,2737.5,2737.4,0.71699]
[1724662694489,4.01799,2737.5,2737.4,0.71699]
[1724662695097,0.36519,2737.5,2737.4,0.71699]
[1724662696714,2.7502446,2737.5,2737.4,0.71699]
[1724662701907,0.36519,2737.5,2737.4,0.71699]
[1724662702218,0.36519,2737.5,2737.1,0.36523]
[1724662702219,0.36522,2737.2,2737.1,0.36523]
[1724662702611,2.75336868,2737.2,2737.1,0.36523]
[1724662702810,3.47316868,2737.2,2737.1,0.36523]
[1724662704914,1.08502,2737.2,2737.1,0.36523]
[1724662707305,0.7198,2737.2,2737.1,0.36523]
[1724662709616,0.7198,2737.2,2737.1,1.68523]
[1724662710118,2.62880216,2737.2,2737.1,1.68523]
[1724662710922,0.7198,2737.2,2737.1,1.68523]
[1724662712722,1.08502,2737.2,2737.1,1.68523]
[1724662712917,3.10794868,2737.2,2737.1,1.68523]
[1724662713626,3.47316868,2737.2,2737.1,1.68523]
[1724662714414,1.08502,2737.2,2737.1,1.68523]
[1724662716327,2.99315564,2737.2,2737.1,1.68523]
[1724662719729,1.08502,2737.2,2737.1,1.68523]
[1724662722731,2.99305723,2737.2,2737.1,1.68523]
[1724662724524,2.99305723,2737.2,2737.1,0.36523]
[1724662724724,1.08502,2737.2,2737.1,0.36523]
[1724662725834,0.36526,2736.9,2736.8,0.36527]
[1724662726131,3.2281816,2736.9,2736.8,0.36527]
[1724662726639,3.5934416,2736.9,2736.8,0.36527]
[1724662726838,1.68526,2736.9,2736.8,0.36527]
[1724662727329,3.5934416,2736.9,2736.8,0.36527]
[1724662727534,3.5934416,2736.9,2736.7,0.72408]
[1724662727722,0.7607,2736.8,2736.7,0.72408]
[1724662727918,2.6688816,2736.8,2736.7,0.72408]
[1724662728122,2.6688816,2736.8,2736.7,0.3588]
[1724662728123,4.3541516,2736.8,2736.7,0.3588]
[1724662728321,4.7306516,2736.8,2736.7,0.3588]
[1724662730329,4.7306516,2736.8,2736.6,0.00547645]
[1724662730924,3.4106516,2736.8,2736.6,0.37077645]
[1724662731134,3.4106516,2736.8,2736.6,0.37076645]
[1724662731334,4.3653816,2736.8,2736.6,0.37076645]
[1724662731935,4.7306516,2736.8,2736.6,0.37076645]
[1724662735228,7.5731816,2736.8,2736.7,0.36529]
[1724662735532,5.665,2736.8,2736.7,0.36529]
[1724662735730,7.57146708,2736.8,2736.7,0.36529]
[1724662735923,6.25146708,2736.8,2736.7,0.36529]
[1724662736124,5.11426708,2736.8,2736.7,1.68529]
[1724662736427,5.11426708,2736.8,2736.7,2.06939]
[1724662738731,1.90646708,2736.8,2736.7,2.06939]
[1724662740738,2.26496708,2736.9,2736.8,0.36527]
[1724662740926,2.26496708,2736.9,2736.8,1.68527]
[1724662741128,2.26496708,2736.9,2736.8,2.04847]
[1724662743439,0.3585,2736.9,2736.8,2.04847]
[1724662743642,2.26496708,2736.9,2736.8,2.04847]
[1724662744233,2.63022708,2736.9,2736.8,2.04847]
[1724662747745,5.11426708,2737.0,2736.9,0.36526]
[1724662747934,2.61686708,2737.2,2736.9,1.32]
[1724662748243,2.98295928,2737.2,2737.1,1.32]
[1724662748439,2.98295928,2737.2,2737.1,1.68523]
[1724662752231,2.98295928,2737.2,2737.1,1.32]
[1724662752439,1.07562,2737.2,2737.1,1.32]
[1724662752635,1.07562,2737.2,2737.0,1.68524]
[1724662752636,2.98302977,2737.2,2737.0,1.68524]
[1724662752946,1.90740977,2737.1,2737.0,1.68524]
[1724662753142,2.98302977,2737.2,2737.0,1.68524]
[1724662753648,1.90740977,2737.1,2737.0,1.68524]
[1724662755846,2.61785163,2737.2,2737.1,0.36523]
[1724662756247,2.61785163,2737.2,2737.1,0.74943]
[1724662756748,2.98307163,2737.2,2737.1,0.74943]
[1724662758453,1.07562,2737.2,2737.1,0.74943]
[1724662760148,0.36523,2737.1,2737.0,1.68524]
[1724662760345,0.36525,2737.0,2736.9,0.36525]
[1724662760649,0.71735,2737.0,2736.9,0.36525]
[1724662760949,2.62492501,2737.0,2736.9,0.36525]
[1724662762642,2.25967501,2737.0,2736.9,0.36525]
[1724662763645,0.3521,2737.0,2736.9,0.36525]
[1724662764049,0.71735,2737.0,2736.9,0.36525]
[1724662764353,3.94492501,2737.0,2736.9,0.36525]
[1724662764551,3.94492501,2737.0,2736.7,0.3543]
[1724662764750,0.71735,2737.0,2736.7,2.62881099]
[1724662764946,0.71735,2737.0,2736.8,0.36526]
[1724662765844,0.71735,2737.0,2736.9,0.36526]
[1724662766241,2.62492501,2737.0,2736.9,0.36526]
[1724662767553,2.25967501,2737.0,2736.9,0.36526]
[1724662767755,2.25967501,2737.0,2736.9,1.68526]
[1724662768747,0.3521,2737.0,2736.9,1.68526]
[1724662769152,2.25967501,2737.0,2736.9,1.68526]
[1724662770745,2.62492501,2737.0,2736.9,0.36526]
[1724662772447,2.25967501,2737.0,2736.9,0.36526]
[1724662773155,2.25967501,2737.0,2736.9,0.64785268]
[1724662779362,0.3521,2737.0,2736.9,0.64785268]
[1724662780862,2.26088923,2737.0,2736.9,0.64785268]
[1724662781258,0.3521,2737.0,2736.9,0.64785268]
[1724662784066,2.74024868,2737.0,2736.9,0.64785268]
[1724662784266,0.3521,2737.0,2736.9,0.64785268]
[1724662784565,2.74024868,2737.0,2736.9,0.64785268]
[1724662785362,0.3521,2737.0,2736.9,0.64785268]
[1724662788565,3.10549868,2737.0,2736.9,0.36526]
[1724662788766,2.74024868,2737.0,2736.9,0.36526]
[1724662792475,1.9100671,2737.0,2736.9,1.27842]
[1724662793562,1.9100671,2737.0,2736.9,2.59842]
[1724662793871,1.9100671,2737.0,2736.9,12.20653099]
[1724662794257,1.9100671,2737.0,2736.9,28.90653099]
[1724662794655,1.9100671,2737.1,2736.9,30.84627996]
[1724662794861,1.9100671,2737.2,2737.1,0.36523]
[1724662795064,1.9100671,2737.2,2737.1,2.64364015]
[1724662795367,1.9100671,2737.2,2737.1,6.29724015]
[1724662796555,1.9100671,2737.3,2737.2,0.36522]
[1724662796872,2.38814868,2737.4,2737.3,0.36521]
[1724662796873,1.9100671,2737.4,2737.3,0.36521]
[1724662797069,1.9100671,2737.4,2737.3,4.01801]
[1724662799267,5.1178671,2737.5,2737.4,0.36519]
[1724662799474,5.1178671,2737.5,2737.4,1.68519]
[1724662799858,3.2078,2737.5,2737.4,1.68519]
[1724662800067,5.11627158,2737.5,2737.4,1.68519]
[1724662801773,6.80145158,2737.5,2737.3,0.36521]
[1724662802077,0.354,2737.4,2737.3,0.36521]
[1724662802773,2.62766158,2737.4,2737.2,0.36521]
[1724662802971,2.0657,2737.3,2737.0,0.95841015]
[1724662803168,0.36523,2737.2,2737.0,0.36524]
[1724662803369,0.36523,2737.2,2737.1,0.36524]
[1724662803872,0.36522,2737.2,2737.1,0.36524]
[1724662804071,0.36522,2737.2,2736.9,6.47341015]
[1724662804272,3.59369158,2737.2,2737.1,0.36524]
[1724662804468,3.22847158,2737.2,2737.1,0.36524]
[1724662805578,3.22847158,2737.2,2736.9,4.195]
[1724662805579,0.36525,2737.0,2736.9,4.195]
[1724662805772,1.68525,2737.0,2736.7,0.95841015]
[1724662805973,0.7411,2736.9,2736.8,0.36527]
[1724662806779,0.7411,2736.9,2736.8,0.73947]
[1724662808062,0.7411,2736.9,2736.8,0.36527]
[1724662808465,1.1143,2736.9,2736.8,0.36527]
[1724662809782,1.1143,2736.9,2736.8,1.68527]
[1724662810979,1.90717085,2737.1,2737.0,0.36525]
[1724662811178,0.7385,2737.1,2737.0,0.36525]
[1724662811675,0.7385,2737.1,2737.0,0.72335]
[1724662812874,0.7385,2737.1,2737.0,0.36525]
[1724662812875,2.64567085,2737.1,2737.0,0.36525]
[1724662813283,7.17347085,2737.1,2736.9,0.36526]
[1724662813575,7.17347085,2737.1,2736.7,2.27841015]
[1724662813576,0.36528,2736.8,2736.7,0.36528]
[1724662814176,0.3822,2736.8,2736.7,0.36528]
[1724662818875,0.74748,2736.8,2736.7,0.36528]
[1724662819078,0.3822,2736.8,2736.7,0.36528]
[1724662820376,3.60937085,2736.8,2736.7,0.36528]
[1724662823485,5.49717085,2736.8,2736.7,0.36528]
[1724662823673,5.49717085,2736.8,2736.7,5.71228]
[1724662823674,0.3822,2736.8,2736.7,5.71228]
[1724662824089,0.3822,2736.8,2736.7,2.05868]
[1724662824288,0.3822,2736.8,2736.7,0.73868]
[1724662828091,2.27477085,2737.1,2736.7,4.4054]
[1724662828391,0.3676,2737.1,2737.0,1.68525]
[1724662828897,2.25827085,2737.3,2737.0,1.32]
[1724662829081,1.90717085,2737.3,2737.1,1.6984]
[1724662829282,1.90717085,2737.3,2737.2,0.71612]
[1724662829482,3.2078,2737.5,2737.4,0.3652]
[1724662829780,0.3652,2737.4,2737.2,0.3509]
[1724662830087,3.98147085,2737.4,2737.2,0.71612]
[1724662830283,0.3511,2737.3,2737.2,0.71612]
[1724662830998,0.3511,2737.3,2737.2,2.03612]
[1724662832298,0.3511,2737.3,2737.2,0.71612]
[1724662832686,1.6711,2737.3,2737.2,0.71612]
[1724662836495,1.90717085,2737.4,2737.3,0.36521]
[1724662836687,0.3588,2737.4,2737.3,0.36521]
[1724662837396,2.26597085,2737.4,2737.3,0.36521]
[1724662837995,3.95117085,2737.4,2737.2,0.71611]
[1724662838196,1.90717085,2737.3,2737.2,0.71611]
[1724662839499,1.32,2737.3,2737.2,0.71611]
[1724662840796,2.26597085,2737.4,2737.2,0.3509]
[1724662841004,3.59236085,2737.5,2737.4,0.3652]
[1724662841304,1.90717085,2737.5,2737.4,0.3652]
[1724662843201,5.11497085,2737.5,2737.4,0.3652]
[1724662843703,1.90717085,2737.5,2737.4,0.3652]
[1724662843905,5.11497085,2737.5,2737.4,0.3652]
[1724662844408,5.48015085,2737.5,2737.4,0.3652]
[1724662845198,2.0653,2737.6,2737.5,0.36518]
[1724662845199,3.60747085,2737.6,2737.5,0.36518]
[1724662845394,4.29531953,2737.9,2737.4,5.44079]
[1724662845603,2.27250527,2738.1,2737.8,1.32]
[1724662845902,2.27250527,2738.1,2737.9,1.09723]
[1724662846696,1.90739527,2738.1,2738.0,0.36512]
[1724662846896,0.00022442,2738.1,2738.0,0.36512]
[1724662847309,0.36532442,2738.1,2737.9,2.41722]
[1724662848193,0.00022442,2738.1,2738.0,0.36512]
[1724662849309,0.36532442,2738.1,2738.0,0.36512]
[1724662849707,0.00022442,2738.1,2738.0,0.36512]
[1724662854606,0.36532442,2738.1,2737.9,2.41722]
[1724662854808,1.32,2738.0,2737.6,3.5702]
[1724662855011,0.3577,2737.9,2737.8,0.36514]
[1724662855200,0.7136,2737.9,2737.8,0.36514]
[1724662860519,2.39873,2737.9,2737.8,0.36514]
[1724662860817,2.0336,2737.9,2737.8,0.36514]
[1724662861910,5.2414,2737.9,2737.8,0.36514]
[1724662863411,3.9214,2737.9,2737.8,0.36514]
[1724662864509,0.36514,2737.8,2737.7,0.36515]
[1724662864713,0.36518,2737.6,2737.5,0.36518]
[1724662865312,0.36516,2737.7,2737.6,0.36517]
[1724662865509,0.3503,2737.8,2737.7,0.36516]
[1724662865922,0.3503,2737.8,2737.7,0.72696]
[1724662866509,0.71544,2737.8,2737.7,0.72696]
[1724662866909,3.92324,2737.8,2737.7,0.72696]
[1724662868017,0.71544,2737.8,2737.7,0.72696]
[1724662868419,3.92324,2737.8,2737.7,0.72696]
[1724662868917,3.5581,2737.8,2737.7,0.72696]